bitfinex/quotes_ETHUSD_20260110
["timestamp","ask_amount","ask_price","bid_price","bid_amount"]
[1768064794584,0.002,3096.9,3096.7,0.254]
[1768064799794,0.002,3096.9,3096.6,0.19440166]
[1768064831650,0.002,3096.9,3096.5,0.001]
[1768064835357,0.97722832,3096.9,3096.5,0.001]
[1768064837154,0.002,3096.9,3096.5,0.001]
[1768064842359,0.002,3096.9,3096.8,0.001]
[1768064866610,0.002,3096.9,3096.8,0.90608847]
[1768064876899,0.002,3097.2,3096.8,0.90608847]
[1768064878802,0.002,3097.2,3097.1,0.001]
[1768064891314,0.97473693,3097.2,3097.1,0.001]
[1768064891514,0.97273693,3097.1,3096.8,0.001]
[1768064892942,0.97273693,3097.1,3096.5,0.001]
[1768064893292,0.97273693,3097.0,3096.5,0.001]
[1768064902232,0.97273693,3096.8,3096.5,0.001]
[1768064902622,0.002,3096.9,3096.5,0.001]
[1768064902840,0.002,3096.9,3096.6,0.45949577]
[1768064903736,0.002,3096.9,3096.7,0.96466487]
[1768064914160,0.002,3096.9,3096.8,0.001]
[1768064916844,0.002,3097.2,3096.8,0.001]
[1768064916845,0.002,3097.2,3096.8,0.97596422]
[1768064917038,0.002,3097.2,3096.8,1.39648356]
[1768064917954,0.002,3097.2,3096.9,0.97496422]
[1768064941993,0.002,3097.2,3097.0,0.0099362]
[1768064942194,0.002,3097.2,3096.9,0.97496422]
[1768064942400,1.2199847,3097.4,3097.0,0.00993506]
[1768064942563,0.254,3097.4,3096.9,0.00993506]
[1768064942888,0.254,3097.4,3096.9,0.45888982]
[1768064943510,0.254,3097.4,3096.9,0.44895476]
[1768064945092,0.96599062,3097.5,3096.9,0.44895476]
[1768064945292,0.254,3097.4,3096.9,0.44895476]
[1768064948189,0.254,3097.4,3096.9,1.39655857]
[1768064949767,0.002,3097.1,3096.9,1.39655857]
[1768064950784,0.002,3097.1,3097.0,0.16515586]
[1768064951796,0.002,3097.1,3097.0,0.15103618]
[1768064952095,0.002,3097.1,3096.9,0.94760381]
[1768064962007,0.002,3097.1,3096.8,0.255]
[1768064963808,0.256,3097.4,3096.8,0.255]
[1768064965110,1.24573135,3097.4,3096.8,0.255]
[1768064965311,0.98973135,3097.3,3096.8,0.255]
[1768064965608,0.98973135,3097.3,3096.8,0.6034347]
[1768064965800,0.256,3097.4,3096.8,0.6034347]
[1768064966390,1.24573135,3097.4,3096.8,0.6034347]
[1768064966592,0.98973135,3097.3,3096.8,0.6034347]
[1768064970913,0.256,3097.4,3096.8,1.55103851]
[1768064973216,0.002,3097.1,3096.8,1.55103851]
[1768064973417,0.256,3097.4,3096.8,1.55103851]
[1768064976617,0.002,3097.4,3096.9,0.93234403]
[1768064976821,0.256,3097.4,3096.9,0.93234403]
[1768064978218,0.002,3097.4,3096.9,1.40884596]
[1768064978403,0.256,3097.4,3096.9,1.40884596]
[1768064980600,1.15774258,3097.4,3096.9,0.47650193]
[1768064981316,0.256,3097.4,3096.9,1.40884596]
[1768064984214,0.256,3097.4,3096.9,0.93234403]
[1768064984821,0.256,3097.4,3097.1,0.001]
[1768064992328,0.92715726,3097.3,3097.1,0.001]
[1768064992492,0.256,3097.4,3097.1,0.001]
[1768065002242,0.002,3097.4,3097.1,0.001]
[1768065002415,0.002,3097.4,3097.1,0.98248105]
[1768065005751,0.002,3097.4,3097.1,0.99241236]
[1768065006440,0.002,3097.4,3097.1,0.98248105]
[1768065010634,0.002,3097.4,3097.1,0.001]
[1768065019665,0.97899697,3097.3,3097.1,0.001]
[1768065024661,0.002,3097.4,3097.1,0.001]
[1768065034667,0.93773706,3097.4,3097.1,0.001]
[1768065039061,0.002,3097.4,3097.1,0.001]
[1768065056586,0.002,3097.4,3097.1,0.922791]
[1768065065001,0.98449936,3097.3,3097.1,0.001]
[1768065065671,0.002,3097.4,3097.1,0.001]
[1768065066203,0.98649936,3097.4,3097.1,0.001]
[1768065074115,0.002,3097.4,3097.1,0.001]
[1768065074478,0.002,3097.4,3097.1,0.91667466]
[1768065083512,0.002,3097.4,3097.1,0.001]
[1768065084282,0.25400592,3097.5,3097.1,0.001]
[1768065088319,5.92e-06,3097.5,3097.1,0.001]
[1768065088830,5.92e-06,3097.5,3097.2,0.91567466]
[1768065089822,5.92e-06,3097.5,3097.2,1.16967466]
[1768065090493,5.92e-06,3097.5,3097.3,0.91567466]
[1768065090694,5.92e-06,3097.5,3097.3,0.60044171]
[1768065096432,5.92e-06,3097.5,3097.2,0.254]
[1768065101031,5.92e-06,3097.5,3097.2,1.24593884]
[1768065101200,5.92e-06,3097.5,3097.3,0.99193884]
[1768065123561,5.92e-06,3097.5,3097.2,0.254]
[1768065124255,5.92e-06,3097.5,3097.2,1.19439353]
[1768065146952,5.92e-06,3097.5,3097.2,0.254]
[1768065149790,5.92e-06,3097.5,3097.2,1.19439353]
[1768065149980,5.92e-06,3097.5,3097.2,0.254]
[1768065160911,5.92e-06,3097.5,3097.2,1.20773742]
[1768065163103,5.92e-06,3097.5,3097.2,0.95373742]
[1768065164987,5.92e-06,3097.5,3097.1,0.255]
[1768065165189,5.92e-06,3097.5,3097.1,0.6987772]
[1768065170116,5.92e-06,3097.5,3097.1,1.65251462]
[1768065174216,5.92e-06,3097.5,3097.2,0.98806454]
[1768065174453,5.92e-06,3097.5,3097.1,0.6987772]
[1768065174618,5.92e-06,3097.5,3097.2,0.98806454]
[1768065184218,5.92e-06,3097.5,3097.1,0.6987772]
[1768065189626,5.92e-06,3097.5,3097.1,1.65499269]
[1768065189922,5.92e-06,3097.5,3097.2,0.16549927]
[1768065190122,5.92e-06,3097.5,3097.1,1.21121549]
[1768065191226,5.92e-06,3097.5,3097.1,0.255]
[1768065191403,5.92e-06,3097.5,3097.1,0.001]
[1768065209940,5.92e-06,3097.5,3097.1,0.95721549]
[1768065211061,5.92e-06,3097.5,3097.1,0.001]
[1768065216853,5.92e-06,3097.5,3097.1,0.98494007]
[1768065217154,5.92e-06,3097.5,3097.1,0.001]
[1768065220255,5.92e-06,3097.5,3097.1,0.98494007]
[1768065220461,5.92e-06,3097.5,3097.1,1.43173545]
[1768065222194,5.92e-06,3097.5,3097.2,0.98394007]
[1768065223862,5.92e-06,3097.5,3097.1,0.001]
[1768065225897,5.92e-06,3097.5,3097.2,0.98394007]
[1768065231108,5.92e-06,3097.5,3097.1,0.001]
[1768065236195,5.92e-06,3097.5,3097.2,0.98728854]
[1768065238415,5.92e-06,3097.5,3097.1,0.001]
[1768065243707,5.92e-06,3097.5,3097.1,0.97439803]
[1768065244718,5.92e-06,3097.5,3097.1,0.001]
[1768065249336,5.92e-06,3097.5,3097.1,0.97439803]
[1768065270476,0.01111436,3098.7,3097.8,0.97339803]
[1768065270680,0.002,3098.8,3098.5,0.97339803]
[1768065270848,0.002,3098.8,3098.2,0.97339803]
[1768065271042,0.92629037,3099.6,3098.1,4.59264387]
[1768065271279,0.254,3099.5,3098.2,0.97339803]
[1768065271569,3.23836195,3099.7,3098.4,0.97339803]
[1768065271773,0.92629037,3099.6,3098.6,0.97339803]
[1768065271999,3.49236195,3099.7,3098.7,0.97339803]
[1768065272159,0.92629037,3099.6,3098.7,0.96852456]
[1768065272484,0.92629037,3099.6,3098.5,0.19419226]
[1768065272639,0.92629037,3099.6,3098.6,1.34096372]
[1768065272838,0.92629037,3099.6,3098.6,2.30948828]
[1768065273036,0.92629037,3099.6,3098.6,1.34096372]
[1768065273239,0.92629037,3099.6,3098.7,0.96852456]
[1768065274370,3.22632682,3099.5,3098.8,0.93156342]
[1768065274944,3.22632682,3099.5,3098.9,0.96852143]
[1768065275339,3.22632682,3099.5,3098.9,1.90008485]
[1768065275577,3.98872489,3099.5,3098.9,1.90008485]
[1768065276350,7.21505171,3099.5,3098.9,1.90008485]
[1768065277182,0.002,3099.2,3098.9,1.90008485]
[1768065278990,1.16129196,3099.2,3098.5,0.93156342]
[1768065279174,0.06637186,3098.9,3098.2,0.93156342]
[1768065279384,0.06637186,3098.9,3098.1,0.254]
[1768065279385,0.06637186,3098.9,3098.4,0.93156342]
[1768065281389,3.2933266,3098.9,3098.2,0.93156342]
[1768065281696,0.06637186,3098.9,3098.2,1.90016616]
[1768065281852,0.06637186,3098.9,3098.3,0.93156342]
[1768065287397,0.06437187,3098.9,3098.3,0.93156342]
[1768065289297,0.06437187,3098.9,3098.6,0.001]
[1768065294669,3.22691805,3099.0,3098.6,0.001]
[1768065294893,0.413221,3098.9,3098.6,0.001]
[1768065297070,3.22688475,3099.0,3098.6,0.001]
[1768065300900,3.22688475,3099.0,3098.9,0.001]
[1768065301223,3.48088475,3099.0,3098.6,0.001]
[1768065301925,4.42266529,3099.0,3098.6,0.001]
[1768065303135,0.94178054,3098.9,3098.6,0.001]
[1768065303429,0.94178054,3098.8,3098.6,0.001]
[1768065305964,0.76494181,3098.9,3098.7,0.93865347]
[1768065306168,0.06635953,3098.7,3098.6,0.001]
[1768065312544,1.03003446,3098.7,3097.7,1.19265347]
[1768065312725,1.03003446,3098.7,3097.8,0.93865347]
[1768065312927,1.03003446,3098.7,3097.9,4.16657951]
[1768065313125,1.03003446,3098.7,3098.0,0.93865347]
[1768065313350,0.06635953,3098.7,3098.0,0.93865347]
[1768065313560,0.06635953,3098.7,3098.1,0.93865347]
[1768065323475,0.06635953,3098.7,3098.4,0.001]
[1768065327058,0.254,3098.8,3098.4,0.001]
[1768065337255,0.92670438,3098.7,3098.4,0.001]
[1768065337456,0.92670438,3098.7,3097.8,6.45618482]
[1768065342787,0.254,3098.8,3098.1,0.95125911]
[1768065346706,0.254,3098.8,3098.4,0.001]
[1768065347200,0.002,3098.5,3098.4,0.001]
[1768065349190,0.92870438,3098.5,3098.4,0.001]
[1768065349811,0.002,3098.5,3098.4,0.001]
[1768065371318,0.95724509,3098.6,3098.4,0.001]
[1768065372436,0.95724509,3098.6,3097.9,3.22794098]
[1768065373653,0.95724509,3098.6,3097.8,3.22809735]
[1768065377920,1.21324509,3098.8,3097.9,4.15940221]
[1768065378123,1.21324509,3098.8,3098.0,0.93144508]
[1768065382559,1.21324509,3098.8,3098.0,4.15932623]
[1768065383055,1.21324509,3098.8,3098.3,0.001]
[1768065383222,0.002,3098.5,3098.3,0.001]
[1768065383421,1.21324509,3098.8,3098.3,0.001]
[1768065384165,0.256,3098.8,3098.3,0.001]
[1768065384958,0.25400001,3098.8,3098.3,0.001]
[1768065392264,0.25200002,3098.8,3098.3,0.001]
[1768065394777,0.25200002,3098.8,3098.1,0.92942683]
[1768065395142,0.25200002,3098.8,3098.3,0.001]
[1768065395639,0.002,3098.5,3098.3,0.001]
[1768065395840,0.25200002,3098.8,3098.3,0.001]
[1768065403061,0.002,3098.8,3098.3,0.001]
[1768065403261,0.256,3098.8,3098.3,0.001]
[1768065403789,0.98825497,3098.7,3098.3,0.001]
[1768065403990,0.98825497,3098.6,3098.3,0.001]
[1768065405061,0.54284584,3098.7,3098.3,0.001]
[1768065406584,0.254,3098.6,3098.3,0.001]
[1768065407877,0.002,3098.5,3098.3,0.001]
[1768065410975,0.254,3098.6,3098.3,0.001]
[1768065411181,0.75541802,3098.6,3098.3,0.001]
[1768065413444,0.254,3098.6,3098.3,0.001]
[1768065422287,0.9389914,3098.8,3098.3,0.001]
[1768065422586,0.254,3098.7,3098.3,0.001]
[1768065427597,3.48116972,3098.7,3098.3,0.001]
[1768065428380,0.93330607,3098.6,3098.3,0.001]
[1768065428581,1.37495365,3098.6,3098.3,0.001]
[1768065430978,4.60224369,3098.6,3098.3,0.001]
[1768065432797,0.93330607,3098.5,3098.3,0.001]
[1768065437603,0.44164758,3098.6,3098.3,0.001]
[1768065439412,1.37495365,3098.6,3098.3,0.001]
[1768065444211,4.60223047,3098.6,3098.3,0.001]
[1768065444742,3.6689244,3098.6,3098.3,0.001]
[1768065445015,0.254,3098.5,3098.3,0.001]
[1768065450424,0.254,3098.5,3098.3,0.94825629]
[1768065450600,0.254,3098.5,3098.3,0.92742959]
[1768065451217,0.08719158,3098.3,3097.6,0.94725629]
[1768065451387,0.08719158,3098.3,3097.8,0.94725629]
[1768065451823,0.08519159,3098.3,3097.9,0.94725629]
[1768065454523,0.08519159,3098.3,3098.2,0.001]
[1768065458537,0.0831916,3098.3,3098.2,0.001]
[1768065464947,0.08119161,3098.3,3098.2,0.001]
[1768065471858,1.22405654,3098.5,3098.2,0.001]
[1768065473957,0.254,3098.5,3098.2,0.001]
[1768065474854,0.96877477,3098.7,3098.2,0.001]
[1768065475061,0.254,3098.6,3098.2,0.98441424]
[1768065478459,2.38819525,3098.7,3098.2,0.001]
[1768065478672,0.254,3098.6,3098.2,0.001]
[1768065479067,2.38819525,3098.7,3098.2,0.001]
[1768065479242,0.254,3098.6,3098.2,0.001]
[1768065481776,2.38819525,3098.7,3098.2,0.001]
[1768065481964,0.254,3098.6,3098.2,0.001]
[1768065482664,0.254,3098.6,3098.2,0.98441424]
[1768065484444,4.40356191,3098.6,3098.2,0.001]
[1768065484643,0.53723367,3098.5,3098.2,0.001]
[1768065485684,0.53723367,3098.5,3097.9,0.97023354]
[1768065486472,3.76461958,3098.5,3097.9,0.97023354]
[1768065487988,0.53723367,3098.5,3097.9,0.97023354]
[1768065488798,3.76462458,3098.5,3097.9,0.97023354]
[1768065489092,3.76462458,3098.5,3098.2,0.001]
[1768065489248,0.59097031,3098.4,3098.2,0.001]
[1768065514060,1.57629287,3098.4,3098.2,0.001]
[1768065519155,0.59097031,3098.4,3098.2,0.001]
[1768065519540,0.256,3098.5,3098.2,0.92078758]
[1768065520765,0.97078103,3098.8,3098.5,0.92078757]
[1768065520964,0.256,3098.8,3098.5,0.78394343]
[1768065521163,0.256,3098.8,3098.5,1.75260246]
[1768065524266,0.256,3098.8,3098.5,0.96865903]
[1768065525352,0.98732256,3099.2,3098.5,0.96865903]
[1768065525668,1.24132256,3099.2,3098.6,0.41961211]
[1768065526252,1.24132256,3099.2,3098.7,0.96857147]
[1768065526649,1.24132256,3099.2,3098.6,0.41961211]
[1768065529984,0.98732256,3099.2,3098.6,0.41961211]
[1768065531171,0.002,3099.2,3098.7,0.92078757]
[1768065531391,0.002,3099.2,3098.8,0.92078757]
[1768065531559,0.002,3099.2,3098.7,3.72690923]
[1768065536306,0.002,3098.9,3098.7,3.72690923]
[1768065536510,0.93823687,3099.0,3098.7,3.72690923]
[1768065536680,0.002,3099.2,3098.7,3.72690923]
[1768065536879,0.002,3099.2,3098.8,0.39809092]
[1768065540708,0.94023687,3099.2,3098.8,0.39809092]
[1768065541906,0.94023687,3099.2,3098.8,3.62514163]
[1768065545508,0.002,3099.2,3098.8,4.5641665]
[1768065546116,0.002,3099.2,3098.8,1.33711579]
[1768065546688,0.002,3099.2,3098.8,4.56416222]
[1768065546891,0.002,3099.2,3098.9,0.45641622]
[1768065548882,0.002,3099.2,3098.4,0.254]
[1768065548883,0.002,3099.2,3098.5,4.16635657]
[1768065549188,0.002,3098.9,3098.5,4.16635657]
[1768065549599,0.002,3098.9,3098.5,0.93902487]
[1768065549899,0.002,3098.9,3098.5,4.16639044]
[1768065550744,0.002,3098.9,3098.5,0.93902487]
[1768065550921,0.002,3098.9,3098.6,0.2114738]
[1768065562635,0.002,3098.9,3098.4,1.17571308]
[1768065570959,0.92171308,3098.9,3098.2,3.22764194]
[1768065571155,0.92171308,3098.9,3098.3,0.91971308]
[1768065571781,0.92171308,3098.9,3098.2,1e-08]
[1768065571939,0.92171308,3098.9,3098.2,3.22768015]
[1768065572267,0.92171308,3098.9,3098.3,0.34816802]
[1768065572838,0.92171308,3098.9,3098.7,0.001]
[1768065578268,0.95838546,3098.8,3098.2,1e-08]
[1768065578442,0.91804727,3098.8,3098.2,1e-08]
[1768065585101,0.91804727,3098.8,3098.5,0.001]
[1768065585278,0.95838676,3098.7,3098.5,0.001]
[1768065587508,0.91804727,3098.7,3098.5,0.001]
[1768065592508,0.002,3098.9,3098.5,0.001]
[1768065592805,0.254,3098.9,3098.5,0.001]
[1768065593302,0.93270168,3099.1,3098.5,0.001]
[1768065596798,0.93270168,3099.1,3098.8,0.001]
[1768065598901,0.002,3099.2,3098.8,0.001]
[1768065599298,0.93470168,3099.2,3098.8,0.001]
[1768065604342,4.16136306,3099.2,3098.8,0.001]
[1768065604544,5.02240884,3099.2,3098.8,0.001]
[1768065605314,1.79574746,3099.2,3098.8,0.001]
[1768065609160,0.002,3098.9,3098.8,0.001]
[1768065647934,0.99968285,3098.9,3098.5,0.001]
[1768065648130,0.002,3098.9,3098.5,0.001]
[1768065655555,0.002,3098.9,3098.8,0.001]
[1768065669859,0.002,3098.9,3098.5,0.001]
[1768065679580,0.002,3098.9,3098.8,0.001]
[1768065690085,0.92760797,3098.9,3098.8,0.001]
[1768065690391,1.34304488,3098.9,3098.8,0.001]
[1768065690879,0.92760797,3098.9,3098.8,0.001]
[1768065724637,0.002,3098.9,3098.8,0.001]
[1768065730038,0.92997935,3098.9,3098.5,0.001]
[1768065737859,0.92997935,3098.9,3098.8,0.001]
[1768065738062,0.002,3098.9,3098.8,0.001]
[1768065784242,0.002,3098.9,3098.5,0.90879998]
[1768065787434,0.002,3098.9,3098.5,0.001]
[1768065795460,0.002,3098.9,3098.8,0.001]
[1768065797151,0.99831994,3098.9,3098.5,0.001]
[1768065797367,1.03665813,3098.8,3098.5,0.001]
[1768065800432,0.99631994,3098.8,3098.5,0.001]
[1768065802764,1.03665813,3098.8,3098.5,0.001]
[1768065810477,1.57944208,3098.8,3098.5,0.001]
[1768065810684,0.99631994,3098.7,3098.5,0.001]
[1768065810847,0.04034079,3098.6,3098.5,0.001]
[1768065811048,1.03665943,3098.7,3098.5,0.001]
[1768065811477,0.99631994,3098.6,3098.5,0.001]
[1768065811677,0.99631994,3098.5,3098.2,1e-08]
[1768065811879,0.99631994,3098.5,3098.0,1.0]
[1768065812785,3.72935722,3098.6,3098.0,1.0]
[1768065812786,0.99631994,3098.3,3098.0,1.0]
[1768065815190,0.96883421,3098.4,3098.0,1.0]
[1768065816289,1.22283421,3098.4,3098.0,1.0]
[1768065819083,1.22283421,3098.4,3098.3,0.001]
[1768065820487,0.254,3098.4,3098.3,0.001]
[1768065825190,0.96883421,3098.5,3098.3,0.001]
[1768065825406,1.15960067,3098.4,3098.0,1.0]
[1768065827689,0.254,3098.4,3098.0,1.0]
[1768065842019,0.254,3098.4,3098.3,0.001]
[1768065842207,0.95364188,3098.3,3098.0,1.0]
[1768065843709,0.254,3098.4,3098.0,1.0]
[1768065845331,0.91962503,3098.6,3098.0,1.0]
[1768065845623,0.254,3098.5,3098.0,1.0]
[1768065846927,0.91962503,3098.4,3098.0,1.0]
[1768065852124,0.254,3098.5,3098.0,1.0]
[1768065853311,0.96883421,3098.7,3098.0,1.93733391]
[1768065853517,0.254,3098.5,3098.3,0.001]
[1768065864934,0.91962503,3098.4,3098.3,0.001]
[1768065865137,0.91962503,3098.4,3098.0,1.0]
[1768065869344,0.254,3098.5,3098.0,1.0]
[1768065870119,1.17362503,3098.5,3098.0,1.0]
[1768065875150,0.254,3098.5,3098.0,1.0]
[1768065877252,0.254,3098.5,3098.3,0.001]
[1768065886057,0.58538874,3098.7,3098.3,0.001]
[1768065886257,0.254,3098.6,3098.3,0.001]
[1768065888693,0.96883421,3098.8,3098.3,0.001]
[1768065888839,0.254,3098.5,3098.3,0.94302487]
[1768065889167,0.254,3098.5,3098.3,0.001]
[1768065889964,0.254,3098.5,3098.3,0.94302487]
[1768065890339,0.254,3098.5,3098.3,0.001]
[1768065908388,0.96586075,3098.9,3098.3,0.001]
[1768065908594,0.254,3098.7,3098.3,0.001]
[1768065912291,0.96386075,3098.6,3098.3,0.001]
[1768065919400,0.254,3098.7,3098.3,0.001]
[1768065922877,0.002,3098.4,3098.3,0.001]
[1768065923089,0.256,3098.7,3098.3,0.001]
[1768065927504,0.156,3098.7,3098.3,0.001]
[1768065930415,0.002,3098.9,3098.6,0.94202487]
[1768065930623,0.002,3098.9,3098.4,0.42234636]
[1768065930917,0.002,3098.9,3098.7,0.9685058]
[1768065935395,0.002,3098.9,3098.8,0.41957167]
[1768065936318,0.002,3098.9,3098.8,1.38543242]
[1768065941238,0.002,3098.9,3098.8,0.96586075]
[1768065942433,0.002,3098.9,3098.3,0.001]
[1768065942434,0.91326961,3098.9,3098.3,0.001]
[1768065942606,0.91326961,3098.9,3098.5,0.91126961]
[1768065942810,0.91326961,3098.9,3098.3,0.001]
[1768065943203,0.91326961,3098.9,3098.3,0.91426961]
[1768065943501,0.91326961,3098.9,3098.4,0.4141882]
[1768065946845,0.002,3098.6,3098.4,0.4141882]
[1768065948314,0.002,3098.6,3098.4,3.64163384]
[1768065948643,0.91326961,3098.9,3098.4,3.64163384]
[1768065949247,0.91326961,3098.9,3098.4,6.86910608]
[1768065949446,0.91326961,3098.9,3098.5,0.50519285]
[1768065950571,0.91326961,3098.9,3098.5,3.73253064]
[1768065950750,0.002,3098.9,3098.6,0.81207976]
[1768065954850,0.002,3098.9,3098.5,3.73253064]
[1768065955258,0.002,3098.9,3098.5,4.5446104]
[1768065955426,0.002,3098.9,3098.6,0.4141882]
[1768065964729,0.940016,3098.8,3098.3,0.001]
[1768065965129,0.940016,3098.7,3098.3,0.001]
[1768065969247,0.940016,3098.7,3098.0,1.0]
[1768065969449,0.940016,3098.7,3097.7,3.22815737]
[1768065969653,0.940016,3098.6,3097.7,3.22815737]
[1768065971644,0.940016,3098.6,3097.7,4.14148694]
[1768065972475,0.940016,3098.6,3097.8,0.91332957]
[1768065973372,0.940016,3098.6,3097.8,4.14141164]
[1768065974373,0.940016,3098.6,3097.8,0.91332957]
[1768065978875,0.940016,3098.6,3097.7,3.22815975]
[1768065979176,0.940016,3098.6,3097.8,3.22809285]
[1768065980479,0.940016,3098.6,3097.7,3.22815903]
[1768065982387,0.940016,3098.6,3098.1,0.001]
[1768065991364,0.940016,3098.5,3098.1,0.001]
[1768065991555,3.22726736,3098.6,3098.1,0.001]
[1768065991556,0.940016,3098.3,3098.1,0.001]
[1768065995310,0.942016,3098.3,3098.1,0.001]
[1768066000831,1.196016,3098.3,3098.1,0.001]
[1768066012831,0.256,3098.3,3098.1,0.001]
[1768066018410,0.2963447,3098.3,3098.1,0.001]
[1768066018611,0.256,3098.3,3098.1,0.001]
[1768066030700,0.74571619,3098.3,3098.1,0.001]
[1768066040391,0.256,3098.3,3098.1,0.001]
[1768066042864,0.002,3098.3,3098.1,0.001]
[1768066079803,0.002,3098.3,3098.1,0.919528]
[1768066081083,0.002,3098.3,3098.1,0.001]
[1768066132438,4.41883653,3098.5,3098.1,0.001]
[1768066132635,5.18363926,3098.5,3098.1,0.001]
[1768066138175,0.98564187,3098.4,3098.1,0.001]
[1768066143592,4.1981762,3098.5,3098.1,0.001]
[1768066145083,5.10565515,3098.5,3098.1,0.001]
[1768066145284,0.90747895,3098.4,3098.1,0.001]
[1768066150301,4.1981762,3098.5,3098.1,0.001]
[1768066153517,4.1981762,3098.5,3098.4,0.001]
[1768066153689,0.90747895,3098.4,3098.1,0.001]
[1768066158920,4.1981762,3098.5,3098.1,0.001]
[1768066165647,4.1981762,3098.5,3098.4,0.001]
[1768066165851,4.1981762,3098.5,3098.1,0.001]
[1768066167648,5.10565515,3098.5,3098.1,0.001]
[1768066168853,0.90747895,3098.4,3098.1,0.001]
[1768066172952,4.1981762,3098.5,3098.1,0.001]
[1768066174854,5.1733783,3098.5,3098.1,0.001]
[1768066175156,0.51753783,3098.4,3098.1,0.001]
[1768066218749,0.91751234,3098.3,3098.1,0.001]
[1768066219047,0.91751234,3098.3,3097.5,3.22836029]
[1768066223523,4.40226852,3098.5,3097.6,0.93970557]
[1768066224947,4.40226852,3098.5,3097.8,0.001]
[1768066225140,5.25716263,3098.5,3097.9,0.93970557]
[1768066231859,0.91751234,3098.4,3097.8,0.001]
[1768066236573,0.002,3098.1,3097.8,0.001]
[1768066237256,0.002,3098.1,3097.9,0.99665174]
[1768066248890,0.9420733,3098.0,3097.8,0.001]
[1768066253495,0.002,3098.1,3097.8,0.001]
[1768066253890,0.002,3098.1,3097.8,0.99573483]
[1768066268921,0.002,3098.1,3097.8,0.001]
[1768066275040,0.96799177,3098.1,3097.8,0.001]
[1768066275198,0.96599177,3097.9,3097.5,0.9420733]
[1768066275401,0.96599177,3097.9,3097.1,0.001]
[1768066275620,0.96599177,3097.8,3097.1,0.001]
[1768066275787,0.19319835,3097.7,3097.1,0.001]
[1768066275996,1.15919012,3097.7,3097.1,0.001]
[1768066280783,0.96599177,3097.6,3097.1,0.001]
[1768066280989,1.21999177,3097.5,3097.1,0.001]
[1768066281799,2.18598354,3097.5,3097.1,0.001]
[1768066282002,1.45790996,3097.5,3097.1,0.001]
[1768066282308,0.96916598,3097.4,3097.1,0.001]
[1768066292932,1.93515775,3097.4,3097.1,0.001]
[1768066302253,0.96916598,3097.4,3097.1,0.001]
[1768066308857,0.95443435,3097.3,3097.1,0.001]
[1768066309069,0.95443435,3097.3,3097.0,1.0]
[1768066309660,0.96916598,3097.4,3097.0,1.0]
[1768066310869,1.22316598,3097.5,3097.0,1.0]
[1768066314165,0.254,3097.5,3097.0,1.0]
[1768066318272,0.002,3097.2,3097.0,1.0]
[1768066323986,0.002,3097.2,3097.0,1.93863766]
[1768066324207,0.002,3097.2,3097.0,2.45550239]
[1768066327202,0.002,3097.2,3097.0,1.93863766]
[1768066327809,0.002,3097.2,3097.0,1.0]
[1768066351524,0.002,3097.2,3097.0,0.99836243]
[1768066368649,0.9795624,3097.2,3097.0,0.99836243]
[1768066368948,0.9795624,3097.2,3096.8,0.001]
[1768066370348,0.002,3097.2,3096.8,0.001]
[1768066371548,0.002,3097.2,3096.8,0.99933807]
[1768066379571,0.002,3097.2,3096.8,0.99933807]
[1768066381670,0.002,3097.2,3096.8,4.22847019]
[1768066381971,0.002,3097.2,3096.9,1.33613841]
[1768066382127,0.002,3097.2,3096.8,3.23013212]
[1768066382330,0.002,3097.2,3096.8,0.001]
[1768066398598,0.98732872,3097.1,3096.8,0.001]
[1768066398805,0.98732872,3097.1,3096.5,6.45987934]
[1768066402362,0.002,3097.2,3096.6,0.92034779]
[1768066402696,0.002,3097.2,3096.7,0.92034779]
[1768066405371,0.002,3097.2,3096.7,4.14958317]
[1768066411899,0.002,3097.2,3096.8,0.001]
[1768066412201,0.002,3096.9,3096.8,0.001]
[1768066442829,0.002,3097.2,3096.8,0.001]
[1768066443126,0.002,3097.2,3096.8,0.98344411]
[1768066443328,0.002,3097.2,3096.9,0.98244411]
[1768066453940,0.002,3097.2,3096.8,0.001]
[1768066456843,0.002,3097.2,3096.8,0.91965387]
[1768066459948,0.002,3096.9,3096.8,0.91965387]
[1768066460154,0.002,3097.2,3096.8,0.91965387]
[1768066471571,0.002,3096.9,3096.8,0.91965387]
[1768066471867,0.002,3097.2,3096.8,0.91965387]
[1768066484208,0.002,3097.2,3096.8,0.001]
[1768066486085,0.002,3096.9,3096.8,0.001]
[1768066496230,0.002,3096.9,3096.8,0.97016598]
[1768066496517,0.002,3096.9,3096.8,1.48738839]
[1768066496707,0.002,3096.9,3096.8,0.51822241]
[1768066498821,0.002,3097.2,3096.8,0.51822241]
[1768066499792,0.002,3097.2,3096.8,0.001]
[1768066500121,0.9945482,3097.1,3096.8,0.001]
[1768066500283,0.9945482,3097.1,3096.8,0.97016598]
[1768066500718,0.9945482,3097.1,3096.8,0.001]
[1768066501089,0.9945482,3097.1,3096.5,0.001]
[1768066501490,0.9945482,3097.1,3096.6,0.96919103]
[1768066502403,0.9945482,3097.1,3096.6,4.19852946]
[1768066503132,0.9945482,3097.1,3096.6,0.96919103]
[1768066509131,0.9945482,3097.1,3096.9,0.001]
[1768066509319,1.19112369,3097.1,3096.9,0.001]
[1768066511844,0.19657549,3097.1,3096.9,0.001]
[1768066512042,0.002,3097.2,3096.9,0.001]
[1768066512960,0.97297194,3097.2,3096.9,0.001]
[1768066518255,0.002,3097.2,3096.9,0.001]
[1768066519131,0.97297194,3097.2,3096.9,0.001]
[1768066519336,0.256,3097.2,3096.9,0.001]